[Event "Liberia Championship 2023"]
[Site "Monrovia"]
[Date "2024.01.16"]
[Round "2.6"]
[White "Anthony Waylea, Jr."]
[Black "Bobby Ballah"]
[Result "1/2-1/2"]
[ECO "D02"]
[WhiteElo "1939"]
[BlackElo "1913"]
[Annotator "NA RC"]
[PlyCount "64"]
[EventDate "2024.01.16"]
[EventType "swiss"]
[EventCountry "LBR"]
[SourceTitle "playchess.com"]
[Source "ChessBase"]
[SourceQuality "1"]
[TimeControl "40/5400+30:1800+30"]

1. Nf3 {[%emt 0:26:34]} Nf6 {[%emt 0:00:18]} 2. g3 {[%emt 0:00:14]} d5 {[%emt 0:01:17]} 3. d4 {[%emt 0:00:20]} c5 {[%emt 0:00:30]} 4. dxc5 {[%emt 0:00:23]} e6 {[%emt 0:00:19]} 5. Bg2 {[%emt 0:01:34]} Bxc5 {[%emt 0:00:17]} 6. O-O {[%emt 0:00:11]} O-O {[%emt 0:00:23]} 7. b3 {[%emt 0:00:57]} Nc6 {[%emt 0:02:41]} 8. Bb2 {[%emt 1:04:17]} Re8 {[%emt 0:02:49]} 9. Ne5 Bd7 {[%emt 1:26:26]} 10. Nxd7 {[%emt 0:00:00]} Nxd7 {[%emt 0:00:00]} 11. Nd2 Rc8 {[%emt 0:01:00]} 12. c4 {[%emt 0:02:00]} Nf6 {[%emt 0:00:30]} 13. cxd5 {[%emt 0:00:00]} exd5 {[%emt 0:00:30]} 14. Nf3 {[%emt 0:01:00]} Ne4 {[%emt 0:00:00]} 15. Nd4 {[%emt 0:00:00]} Nxd4 {[%emt 0:00:00]} 16. Bxd4 {[%emt 0:00:00]} Bxd4 17. Qxd4 {[%emt 0:00:00]} Nc3 {[%emt 0:02:00]} 18. Qxa7 {[%emt 0:02:00]} Nxe2+ {[%emt 0:00:00]} 19. Kh1 {[%emt 0:00:00]} d4 {[%emt 0:00:00]} 20. Qxb7 {[%emt 0:00:00]} d3 {[%emt 0:00:00]} 21. Rad1 {[%emt 0:00:00]} d2 {[%emt 0:00:00]} 22. Bf3 {[%emt 0:00:00]} Nc3 {[%emt 0:00:00]} 23. Ra1 {[%emt 0:00:00]} Qd3 {[%emt 0:00:00]} 24. Kg2 Rcd8 {[%emt 0:00:00]} 25. a4 {[%emt 0:00:00]} Rb8 {[%emt 0:00:00]} 26. Qc7 {[%emt 0:00:00]} Rxb3 27. Qc6 {[%emt 0:04:30]} Rd8 {[%emt 0:05:00]} 28. a5 {[%emt 0:00:30]} Nb5 {[%emt 0:00:00]} 29. Qe4 {[%emt 0:00:00]} Qd6 {[%emt 0:00:00]} 30. a6 {[%emt 0:00:00]} Na7 {[%emt 0:00:00]} 31. Rfd1 {[%emt 0:00:00]} g6 {[%emt 0:00:00]} 32. Ra2 {[%emt 0:00:00]} Rd3 {[%emt 0:02:30]} 1/2-1/2

[Event "Liberia Championship 2023"]
[Site "Monrovia"]
[Date "2024.01.16"]
[Round "2.7"]
[White "Martin Dunbar"]
[Black "Thomas, Saah"]
[Result "0-1"]
[ECO "B20"]
[WhiteElo "1709"]
[BlackElo "1889"]
[Annotator "NA COMBH"]
[PlyCount "62"]
[EventDate "2024.01.16"]
[EventType "swiss"]
[EventCountry "LBR"]
[SourceTitle "playchess.com"]
[Source "ChessBase"]
[SourceQuality "1"]
[TimeControl "40/5400+30:1800+30"]

1. e4 {[%emt 0:37:11]} c5 {[%emt 0:12:22]} 2. Bc4 {[%emt 0:54:19]} Nc6 {[%emt 1:19:08]} 3. a3 {[%emt 0:00:00]} g6 {[%emt 0:00:00]} 4. d3 {[%emt 0:00:00]} Bg7 {[%emt 0:00:00]} 5. Nf3 {[%emt 0:00:00]} e6 {[%emt 0:00:00]} 6. Nc3 {[%emt 0:00:00]} Nge7 {[%emt 0:00:00]} 7. Bd2 {[%emt 0:00:00]} d5 {[%emt 0:00:00]} 8. exd5 {[%emt 0:03:00]} exd5 {[%emt 0:03:00]} 9. Ba2 {[%emt 0:00:00]} O-O {[%emt 0:00:00]} 10. Bg5 {[%emt 0:00:00]} h6 {[%emt 0:00:00]} 11. Bh4 {[%emt 0:01:30]} Be6 {[%emt 0:01:30]} 12. Qd2 {[%emt 0:00:30]} a6 {[%emt 0:00:30]} 13. h3 {[%emt 0:00:00]} b5 {[%emt 0:00:00]} 14. O-O {[%emt 0:00:00]} Qb6 {[%emt 0:00:00]} 15. Rab1 {[%emt 0:00:00]} c4 {[%emt 0:00:00]} 16. Bg3 {[%emt 0:00:00]} Rad8 {[%emt 0:00:00]} 17. Rfe1 {[%emt 0:00:00]} d4 {[%emt 0:00:00]} 18. Rxe6 {[%emt 0:00:00]} dxc3 {[%emt 0:00:00]} 19. Rxc6 {[%emt 0:00:00]} Qxc6 {[%emt 0:00:00]} 20. bxc3 {[%emt 0:00:00]} cxd3 {[%emt 0:00:00]} 21. cxd3 {[%emt 0:00:00]} Qxc3 {[%emt 0:00:00]} 22. Qe2 {[%emt 0:05:00]} Nf5 {[%emt 0:05:00]} 23. Be5 {[%emt 0:00:30]} Qxd3 {[%emt 0:00:30]} 24. Qb2 {[%emt 0:00:00]} Bxe5 {[%emt 0:00:00]} 25. Qxe5 {[%emt 0:00:00]} Qxa3 {[%emt 0:00:00]} 26. Ra1 {[%emt 0:01:30]} Qd6 {[%emt 0:01:30]} 27. Qe4 {[%emt 0:00:30]} Rfe8 {[%emt 0:00:30]} 28. Qg4 {[%emt 0:00:00]} Kg7 {[%emt 0:00:00]} 29. h4 {[%emt 0:00:00]} h5 {[%emt 0:00:00]} 30. Qg5 {[%emt 0:00:00]} Qf6 {[%emt 0:00:00]} 31. Qf4 {[%emt 0:00:00]} Qxa1+ {[%emt 0:00:00]} 0-1

[Event "Liberia Championship 2023"]
[Site "Monrovia"]
[Date "2024.01.16"]
[Round "2.8"]
[White "Miller Moore"]
[Black "Kennedy Zinnah Kengo"]
[Result "1-0"]
[ECO "C78"]
[WhiteElo "1677"]
[BlackElo "1789"]
[Annotator "NA COMBH"]
[PlyCount "113"]
[EventDate "2024.01.16"]
[EventType "swiss"]
[EventCountry "LBR"]
[SourceTitle "playchess.com"]
[Source "ChessBase"]
[SourceQuality "1"]
[TimeControl "40/5400+30:1800+30"]

1. e4 {[%emt 0:01:53]} e5 {[%emt 0:16:03]} 2. Nf3 {[%emt 0:00:24]} Nc6 {[%emt 0:00:18]} 3. Bb5 {[%emt 0:00:11]} a6 {[%emt 0:00:40]} 4. Ba4 {[%emt 0:00:08]} Nf6 {[%emt 0:00:16]} 5. O-O {[%emt 0:00:14]} b5 {[%emt 0:00:58]} 6. Bb3 {[%emt 0:00:14]} d6 {[%emt 0:00:19]} 7. c3 {[%emt 0:00:16]} Be7 {[%emt 0:02:42]} 8. h3 {[%emt 0:00:23]} Nxe4 {[%emt 0:00:38]} 9. Bd5 {[%emt 0:00:13]} Bb7 {[%emt 0:00:47]} 10. Bxe4 {[%emt 0:00:11]} d5 {[%emt 0:00:12]} 11. Bc2 {[%emt 0:00:21]} O-O {[%emt 0:00:08]} 12. d3 {[%emt 0:00:29]} Bd6 {[%emt 0:00:24]} 13. Nbd2 {[%emt 0:00:44]} f5 {[%emt 0:00:27]} 14. Re1 {[%emt 0:00:59]} Qf6 {[%emt 0:00:15]} 15. Nf1 {[%emt 0:00:18]} e4 {[%emt 0:00:13]} 16. dxe4 {[%emt 0:00:30]} dxe4 {[%emt 0:00:51]} 17. Nd4 {[%emt 0:00:33]} Rad8 {[%emt 0:00:13]} 18. Bb3+ {[%emt 0:00:27]} Kh8 {[%emt 0:00:17]} 19. Qh5 {[%emt 0:00:20]} g6 {[%emt 0:02:05]} 20. Qg5 {[%emt 0:00:23]} Rde8 {[%emt 0:01:06]} 21. Qxf6+ {[%emt 0:00:17]} Rxf6 {[%emt 0:00:10]} 22. Bg5 {[%emt 0:00:44]} Kg7 {[%emt 0:00:42]} 23. Bxf6+ {[%emt 0:00:11]} Kxf6 {[%emt 0:00:09]} 24. Ne3 {[%emt 1:32:07]} Ke5 {[%emt 1:12:37]} 25. Rad1 {[%emt 0:00:00]} Na5 {[%emt 0:00:00]} 26. Bc2 {[%emt 0:00:00]} h5 {[%emt 0:00:00]} 27. b4 {[%emt 0:00:00]} Nc6 {[%emt 0:00:00]} 28. Nxc6+ {[%emt 0:00:00]} Bxc6 {[%emt 0:00:00]} 29. Bb3 {[%emt 0:00:00]} f4 {[%emt 0:00:00]} 30. Bd5 {[%emt 0:00:00]} Bd7 {[%emt 0:00:00]} 31. Nc2 {[%emt 0:00:00]} Bf5 {[%emt 0:03:30]} 32. Bc6 {[%emt 0:04:00]} Rb8 {[%emt 0:00:00]} 33. Nd4 {[%emt 0:00:00]} Rb6 {[%emt 0:00:00]} 34. Bxe4 {[%emt 0:00:00]} Bxe4 {[%emt 0:00:00]} 35. f3 {[%emt 0:00:00]} c5 {[%emt 0:00:00]} 36. Rxe4+ {[%emt 0:00:00]} Kf6 {[%emt 0:02:30]} 37. Re6+ {[%emt 0:02:30]} Kf7 {[%emt 0:00:00]} 38. bxc5 {[%emt 0:00:00]} Bxc5 {[%emt 0:00:00]} 39. Rxb6 {[%emt 0:00:00]} Bxb6 {[%emt 0:00:00]} 40. Kf1 {[%emt 0:00:00]} Ba5 {[%emt 0:00:00]} 41. Rd3 {[%emt 0:00:00]} Kf6 {[%emt 0:32:30]} 42. Nb3 {[%emt 0:32:30]} Bc7 {[%emt 0:00:00]} 43. Rd7 {[%emt 0:00:00]} Be5 {[%emt 0:00:00]} 44. Nd4 {[%emt 0:00:00]} g5 {[%emt 0:00:00]} 45. Ra7 {[%emt 0:00:00]} b4 {[%emt 0:00:00]} 46. Rxa6+ {[%emt 0:00:00]} Kf7 {[%emt 0:02:30]} 47. Nc6 {[%emt 0:02:30]} Bxc3 {[%emt 0:00:00]} 48. Rb6 {[%emt 0:00:00]} Ke6 {[%emt 0:00:00]} 49. Nxb4+ {[%emt 0:00:00]} Kf5 {[%emt 0:01:30]} 50. Nd3 {[%emt 0:01:30]} Bd2 {[%emt 0:00:00]} 51. a4 {[%emt 0:00:00]} Be3 {[%emt 0:00:00]} 52. Rb5+ {[%emt 0:00:00]} Kg6 {[%emt 0:00:00]} 53. a5 {[%emt 0:00:00]} Kf6 {[%emt 0:00:00]} 54. Nc5 {[%emt 0:00:00]} Ke7 {[%emt 0:00:00]} 55. a6 {[%emt 0:00:00]} Kd6 {[%emt 0:00:00]} 56. a7 {[%emt 0:00:00]} Kc6 {[%emt 0:00:00]} 57. Rb7 {[%emt 0:00:00]} 1-0

[Event "Liberia Championship 2023"]
[Site "Monrovia"]
[Date "2024.01.16"]
[Round "2.9"]
[White "Rudolph Edwards"]
[Black "John Jallah"]
[Result "0-1"]
[ECO "A16"]
[WhiteElo "1630"]
[BlackElo "1761"]
[Annotator "NA COMBH"]
[PlyCount "70"]
[EventDate "2024.01.16"]
[EventType "swiss"]
[EventCountry "LBR"]
[SourceTitle "playchess.com"]
[Source "ChessBase"]
[SourceQuality "1"]
[TimeControl "40/5400+30:1800+30"]

1. e4 {[%emt 0:08:52]} c6 {[%emt 0:00:21]} 2. c4 {[%emt 0:00:27]} d6 {[%emt 0:01:31]} 3. Nc3 {[%emt 0:01:50]} g6 {[%emt 0:00:26]} 4. g3 {[%emt 0:00:12]} Bg7 {[%emt 0:00:10]} 5. Bg2 {[%emt 0:00:12]} Nf6 {[%emt 0:00:27]} 6. Nge2 {[%emt 0:00:17]} Nbd7 {[%emt 0:00:31]} 7. O-O {[%emt 0:00:15]} O-O {[%emt 0:00:09]} 8. d3 {[%emt 0:00:06]} Ne5 {[%emt 0:02:36]} 9. Bf4 {[%emt 0:01:37]} Nfd7 {[%emt 0:03:17]} 10. b4 {[%emt 0:01:00]} a5 {[%emt 0:01:10]} 11. b5 {[%emt 0:02:21]} a4 {[%emt 0:04:52]} 12. Rb1 {[%emt 0:00:24]} a3 {[%emt 0:00:19]} 13. Rb3 {[%emt 0:00:48]} Nc5 {[%emt 0:00:20]} 14. Rb1 {[%emt 0:02:21]} Nexd3 {[%emt 0:00:32]} 15. Be3 {[%emt 0:00:53]} Nb2 {[%emt 0:00:42]} 16. Qc2 {[%emt 0:00:56]} Nxc4 {[%emt 0:00:20]} 17. Bxc5 {[%emt 0:00:59]} dxc5 {[%emt 0:00:11]} 18. bxc6 {[%emt 0:00:41]} bxc6 {[%emt 0:00:18]} 19. Na4 {[%emt 0:00:37]} Ba6 {[%emt 0:04:41]} 20. Rfd1 {[%emt 0:00:41]} Qa5 {[%emt 0:00:32]} 21. Nac3 {[%emt 0:03:31]} Nb2 {[%emt 0:01:41]} 22. Rd7 {[%emt 0:04:25]} Rfd8 {[%emt 0:00:57]} 23. Rxd8+ {[%emt 0:01:27]} Rxd8 {[%emt 0:00:18]} 24. Rc1 {[%emt 0:00:08]} Bd3 {[%emt 0:00:41]} 25. Qb3 {[%emt 0:00:57]} Bc4 {[%emt 0:07:39]} 26. Qb7 {[%emt 0:01:08]} Nd3 {[%emt 0:03:24]} 27. Rc2 {[%emt 0:02:01]} Nb4 {[%emt 0:00:27]} 28. Rc1 {[%emt 0:01:42]} Bxe2 {[%emt 0:00:33]} 29. Qxe7 {[%emt 0:13:22]} Bc4 {[%emt 0:01:50]} 30. e5 {[%emt 0:00:18]} Nxa2 {[%emt 0:08:05]} 31. Nxa2 {[%emt 0:00:22]} Bxa2 {[%emt 0:00:33]} 32. h4 {[%emt 0:00:55]} Qd2 {[%emt 0:02:12]} 33. Qxc5 {[%emt 0:00:59]} Bxe5 {[%emt 0:02:18]} 34. Qxc6 {[%emt 0:11:25]} Bb2 {[%emt 0:00:24]} 35. Rf1 {[%emt 0:01:04]} Bd5 {[%emt 0:00:23]} 0-1

[Event "Liberia Championship 2023"]
[Site "Monrovia"]
[Date "2024.01.16"]
[Round "2.10"]
[White "Prince Jegbadai"]
[Black "Harold Evans"]
[Result "0-1"]
[ECO "B01"]
[WhiteElo "1627"]
[BlackElo "1735"]
[Annotator "NA COMBH"]
[PlyCount "108"]
[EventDate "2024.01.16"]
[EventType "swiss"]
[EventCountry "LBR"]
[SourceTitle "playchess.com"]
[Source "ChessBase"]
[SourceQuality "1"]
[TimeControl "40/5400+30:1800+30"]

1. e4 {[%emt 0:00:05]} d5 {[%emt 0:19:52]} 2. e5 {[%emt 0:00:17]} d4 {[%emt 0:00:40]} 3. Bc4 {[%emt 0:00:17]} Nc6 {[%emt 0:01:29]} 4. f4 {[%emt 0:00:15]} Bf5 {[%emt 0:00:51]} 5. a3 {[%emt 0:00:17]} e6 {[%emt 0:00:25]} 6. Nf3 {[%emt 0:00:14]} Qd7 {[%emt 0:00:55]} 7. O-O {[%emt 0:00:15]} Be7 {[%emt 0:00:35]} 8. d3 {[%emt 0:00:19]} h6 {[%emt 0:00:27]} 9. b4 {[%emt 0:00:26]} Bg4 {[%emt 0:01:24]} 10. Qe1 {[%emt 0:00:33]} f5 {[%emt 0:04:03]} 11. Nbd2 {[%emt 0:00:54]} O-O-O {[%emt 0:00:48]} 12. Nb3 {[%emt 0:00:37]} Bxf3 {[%emt 0:00:32]} 13. Rxf3 {[%emt 0:00:17]} Rf8 {[%emt 0:00:47]} 14. b5 {[%emt 0:00:37]} Nd8 {[%emt 0:00:01]} 15. Bd2 {[%emt 0:00:24]} g5 {[%emt 0:00:44]} 16. a4 {[%emt 0:00:18]} gxf4 {[%emt 0:00:44]} 17. Bxf4 {[%emt 0:00:23]} h5 {[%emt 0:00:26]} 18. a5 {[%emt 0:00:19]} Nh6 {[%emt 0:01:39]} 19. Qd2 {[%emt 0:02:12]} Ndf7 {[%emt 0:03:12]} 20. b6 {[%emt 0:02:35]} cxb6 {[%emt 0:02:07]} 21. axb6 {[%emt 0:00:35]} axb6 {[%emt 0:00:10]} 22. Ra7 {[%emt 0:00:48]} Kb8 {[%emt 0:00:46]} 23. Ra2 {[%emt 0:00:25]} Ng4 {[%emt 0:00:07]} 24. h3 {[%emt 0:00:30]} Ngxe5 {[%emt 0:01:45]} 25. Rf1 {[%emt 0:00:54]} Rhg8 {[%emt 0:01:01]} 26. Rfa1 {[%emt 0:00:25]} Bd6 {[%emt 0:00:41]} 27. Kh1 {[%emt 0:00:37]} Nxc4 {[%emt 0:00:48]} 28. dxc4 {[%emt 0:00:24]} e5 {[%emt 0:00:42]} 29. Bh2 {[%emt 0:00:52]} Kc7 {[%emt 0:03:46]} 30. c5 {[%emt 0:03:01]} Bxc5 {[%emt 0:01:29]} 31. Nxc5 {[%emt 0:00:20]} bxc5 {[%emt 0:00:24]} 32. Qa5+ {[%emt 1:26:05]} Kd6 {[%emt 0:53:10]} 33. Rb1 {[%emt 0:00:00]} Rc8 {[%emt 0:00:00]} 34. Rab2 {[%emt 0:00:00]} Rc7 {[%emt 0:00:00]} 35. Rb6+ {[%emt 0:00:00]} Ke7 {[%emt 0:00:00]} 36. Qe1 {[%emt 0:00:00]} Qd5 {[%emt 0:00:00]} 37. Qf2 {[%emt 0:00:00]} Nd6 {[%emt 0:00:00]} 38. Re1 {[%emt 0:00:00]} Nc4 {[%emt 0:00:00]} 39. Rh6 {[%emt 0:00:00]} Ne3 {[%emt 0:00:00]} 40. Qh4+ {[%emt 0:00:00]} Kf8 {[%emt 0:00:00]} 41. Rf6+ {[%emt 0:00:00]} Rf7 {[%emt 0:00:00]} 42. Rxf7+ {[%emt 0:00:00]} Kxf7 {[%emt 0:00:00]} 43. Qxh5+ {[%emt 0:35:30]} Kf8 {[%emt 0:35:30]} 44. Qh6+ {[%emt 0:00:00]} Rg7 {[%emt 0:00:00]} 45. Qh8+ {[%emt 0:00:00]} Kf7 {[%emt 0:00:00]} 46. Qh5+ {[%emt 0:00:00]} Ke7 {[%emt 0:00:00]} 47. Qf3 {[%emt 0:00:00]} Qxf3 {[%emt 0:00:00]} 48. gxf3 {[%emt 0:00:00]} f4 {[%emt 0:00:00]} 49. Rb1 {[%emt 0:00:00]} Kd6 {[%emt 0:00:00]} 50. Rb2 {[%emt 0:00:00]} Kc6 {[%emt 0:00:00]} 51. Bg1 {[%emt 0:00:00]} b5 {[%emt 0:00:00]} 52. Bf2 {[%emt 0:00:00]} b4 {[%emt 0:00:00]} 53. Ra2 {[%emt 0:00:00]} Kd5 {[%emt 0:00:00]} 54. Rb2 {[%emt 0:00:00]} Nd1 {[%emt 0:00:00]} 0-1

[Event "Liberia Championship 2023"]
[Site "Monrovia"]
[Date "2024.01.16"]
[Round "3.1"]
[White "David Leroy Debblay"]
[Black "Barcon, Harmon"]
[Result "*"]
[ECO "C54"]
[WhiteElo "1791"]
[BlackElo "1902"]
[Annotator "NA RC"]
[PlyCount "111"]
[EventDate "2024.01.16"]
[EventType "swiss"]
[EventCountry "LBR"]
[SourceTitle "playchess.com"]
[Source "ChessBase"]
[SourceQuality "1"]
[TimeControl "40/5400+30:1800+30"]

1. e4 {[%emt 0:00:26]} e5 {[%emt 0:00:10]} 2. Nf3 {[%emt 0:00:03]} Nc6 {[%emt 0:00:09]} 3. Bc4 {[%emt 0:01:03]} Nf6 {[%emt 0:00:08]} 4. d3 {[%emt 0:00:29]} Bc5 {[%emt 0:00:15]} 5. O-O {[%emt 0:00:37]} d6 {[%emt 0:00:08]} 6. h3 {[%emt 0:00:05]} h6 {[%emt 0:00:12]} 7. c3 {[%emt 0:00:46]} Bb6 {[%emt 0:00:31]} 8. Re1 {[%emt 0:02:17]} O-O {[%emt 0:04:10]} 9. Be3 {[%emt 0:02:30]} Bxe3 {[%emt 0:00:59]} 10. Rxe3 {[%emt 0:00:17]} Re8 {[%emt 0:00:15]} 11. Nbd2 {[%emt 0:00:34]} Ne7 {[%emt 0:00:21]} 12. Qb3 {[%emt 0:01:13]} Rf8 {[%emt 0:01:15]} 13. d4 {[%emt 0:06:14]} exd4 {[%emt 0:00:20]} 14. cxd4 {[%emt 0:02:02]} Ng6 {[%emt 0:00:28]} 15. e5 {[%emt 0:01:01]} Nh5 {[%emt 0:05:05]} 16. e6 {[%emt 0:08:00]} fxe6 {[%emt 0:01:32]} 17. Bxe6+ {[%emt 0:00:08]} Kh8 {[%emt 0:01:46]} 18. d5 {[%emt 0:03:44]} Nhf4 {[%emt 0:04:29]} 19. Rae1 {[%emt 0:01:05]} c6 {[%emt 0:00:44]} 20. Ne4 {[%emt 0:04:43]} Bxe6 {[%emt 0:14:05]} 21. dxe6 {[%emt 0:00:13]} Qe7 {[%emt 0:00:18]} 22. Ng3 {[%emt 0:00:43]} Nd5 {[%emt 0:03:20]} 23. Re4 {[%emt 0:02:05]} Rae8 {[%emt 0:04:10]} 24. Nd4 {[%emt 0:04:06]} Ngf4 {[%emt 0:12:23]} 25. Ndf5 {[%emt 0:08:49]} Qc7 {[%emt 0:10:28]} 26. e7 {[%emt 0:08:04]} Rf6 {[%emt 0:00:25]} 27. Qf3 {[%emt 0:00:23]} g6 {[%emt 0:04:13]} 28. Rxf4 {[%emt 0:01:02]} gxf5 {[%emt 0:07:19]} 29. Rxf5 {[%emt 0:00:24]} Rxe7 {[%emt 0:02:42]} 30. Rxe7 {[%emt 0:00:32]} Qxe7 {[%emt 0:00:14]} 31. Rxf6 {[%emt 0:00:22]} Qxf6 {[%emt 0:00:33]} 32. Qxf6+ {[%emt 0:00:02]} Nxf6 {[%emt 0:00:05]} 33. Nf5 {[%emt 0:00:10]} d5 {[%emt 0:03:18]} 34. Nxh6 {[%emt 0:00:10]} Kg7 {[%emt 0:01:18]} 35. Nf5+ {[%emt 0:00:12]} Kg6 {[%emt 0:00:20]} 36. Ne3 {[%emt 0:00:36]} d4 {[%emt 0:00:20]} 37. Nc4 {[%emt 0:00:26]} Ne4 {[%emt 0:01:05]} 38. Kf1 {[%emt 0:00:21]} Kf6 {[%emt 0:01:22]} 39. Ke2 {[%emt 0:00:39]} b5 {[%emt 0:00:48]} 40. Nd2 {[%emt 0:00:00]} Nd6 {[%emt 0:00:00]} 41. Kd3 {[%emt 0:01:35]} Ke5 {[%emt 0:05:49]} 42. Nf3+ {[%emt 0:00:52]} Kd5 {[%emt 0:00:39]} 43. Nxd4 {[%emt 0:00:50]} c5 {[%emt 0:02:24]} 44. Ne2 {[%emt 0:00:50]} c4+ {[%emt 0:01:09]} 45. Ke3 {[%emt 0:00:45]} b4 {[%emt 0:01:38]} 46. g4 {[%emt 0:00:56]} a5 {[%emt 0:00:43]} 47. h4 {[%emt 0:00:55]} a4 {[%emt 0:00:38]} 48. h5 {[%emt 0:01:22]} Ne4 {[%emt 0:01:30]} 49. h6 {[%emt 0:01:28]} Ng5 {[%emt 0:09:11]} 50. f4 {[%emt 0:01:18]} Nh7 {[%emt 0:00:32]} 51. g5 {[%emt 0:00:41]} a3 {[%emt 0:01:55]} 52. bxa3 {[%emt 0:00:52]} b3 {[%emt 0:00:32]} 53. axb3 {[%emt 0:00:42]} cxb3 {[%emt 0:00:34]} 54. g6 {[%emt 0:01:09]} Kc4 {[%emt 0:01:16]} 55. gxh7 {[%emt 0:00:38]} b2 {[%emt 0:00:36]} 56. h8=Q {[%emt 0:00:43]} *

[Event "Liberia Championship 2023"]
[Site "Monrovia"]
[Date "2024.01.16"]
[Round "3.2"]
[White "Obediah Saah"]
[Black "Arnold Smith"]
[Result "1/2-1/2"]
[ECO "E17"]
[WhiteElo "1756"]
[BlackElo "1844"]
[Annotator "NA COMBH"]
[PlyCount "65"]
[EventDate "2024.01.16"]
[EventType "swiss"]
[EventCountry "LBR"]
[SourceTitle "playchess.com"]
[Source "ChessBase"]
[SourceQuality "1"]
[TimeControl "40/5400+30:1800+30"]

1. d4 {[%emt 0:00:03]} Nf6 {[%emt 0:07:00]} 2. Nf3 {[%emt 0:01:32]} d5 {[%emt 0:00:13]} 3. c4 {[%emt 0:01:04]} e6 {[%emt 0:00:10]} 4. g3 {[%emt 0:00:31]} Be7 {[%emt 0:00:20]} 5. Bg2 {[%emt 0:00:48]} O-O {[%emt 0:00:20]} 6. Qc2 {[%emt 0:00:23]} b6 {[%emt 0:01:41]} 7. O-O {[%emt 0:00:58]} Bb7 {[%emt 0:00:06]} 8. cxd5 {[%emt 0:00:56]} Bxd5 {[%emt 0:00:29]} 9. Nc3 {[%emt 0:00:45]} Bb7 {[%emt 0:00:08]} 10. Rd1 {[%emt 0:02:36]} Nbd7 {[%emt 0:00:23]} 11. Bf4 {[%emt 0:01:09]} c6 {[%emt 0:00:34]} 12. Rac1 {[%emt 0:02:08]} Rc8 {[%emt 0:00:08]} 13. Qb3 {[%emt 0:00:28]} h6 {[%emt 0:00:28]} 14. Ne5 {[%emt 0:01:36]} Nd5 {[%emt 0:02:03]} 15. Bd2 {[%emt 0:05:41]} Bd6 {[%emt 0:05:26]} 16. Nxd7 {[%emt 0:03:17]} Qxd7 {[%emt 0:00:16]} 17. e4 {[%emt 0:01:03]} Nxc3 {[%emt 0:00:11]} 18. bxc3 {[%emt 0:01:38]} Rfd8 {[%emt 0:00:18]} 19. c4 {[%emt 0:02:34]} Bf8 {[%emt 0:00:50]} 20. h4 {[%emt 0:01:37]} Qc7 {[%emt 0:01:27]} 21. Bf4 {[%emt 0:02:08]} Qe7 {[%emt 0:03:38]} 22. Rd3 {[%emt 0:02:52]} Rd7 {[%emt 0:02:37]} 23. Rcd1 {[%emt 0:01:56]} Rcd8 {[%emt 0:00:30]} 24. d5 {[%emt 0:02:32]} cxd5 {[%emt 0:02:21]} 25. cxd5 {[%emt 0:01:27]} exd5 {[%emt 0:00:10]} 26. exd5 {[%emt 0:00:34]} Qb4 {[%emt 0:02:26]} 27. d6 {[%emt 0:12:55]} Qxb3 {[%emt 0:00:48]} 28. axb3 {[%emt 0:01:41]} Bxg2 29. Kxg2 {[%emt 0:00:22]} f6 {[%emt 0:00:28]} 30. h5 {[%emt 0:00:58]} Kf7 {[%emt 0:00:19]} 31. Kf3 {[%emt 0:00:41]} Ke6 {[%emt 0:00:10]} 32. Re1+ {[%emt 0:00:45]} Kf7 {[%emt 0:00:08]} 33. Red1 {[%emt 0:00:07]} 1/2-1/2